Workbook

Sheet TDSheet
A1: Утверждаю
A2: Руководитель учреждения | O2: Исимова Б.А.
A5: "__" ____________________ 20 г.
AD8: МЕНЮ-ТРЕБОВАНИЕ НА ВЫДАЧУ ПРОДУКТОВ ПИТАНИЯ
AE9: 2021-11-30
A12: Учреждение | F12: МКОУ " Яблонская ООШ"
A13: Структурное подразделение | I13: школа
A14: Материально ответственное лицо | I14: Хамзаева Э.Д.
A16: Коды категорий довольствующихся (группы) | M16: Плановая стоимость одного дня, руб | O16: Количество довольствующихся по плановой стоимости одного дня | AC16: Плановая стоимость на всех довольствующихся, руб | AD16: Фактическая стоимость, руб
A17: суммарных категорий | D17: по плановой стоимости одного дня
A18: 1 | D18: 2 | M18: 3
A19: горячее питание | M19: 64.27 | O19: 30 | AC19: =SUM(M19*O19) -> 1928.1 | AD19: =SUM(AI46) -> 2068.86
N20: Всего
A22: Продукты питания | K22: Единица измерения | L22: Количество продуктов питания, подлежащих закладке | M22: Количество продуктов питания, подлежащих закладке
A23: наименование | G23: Цена | L23: Завтрак | M23: Завтрак
L25: каша рисовая | N25: чай молочный | O25: хлеб с маслом и сыром | AC25: сок | AD25: яблоко | AE25: яйцо вареное | AG25: на одного ребенка | AH25: на всех детей | AI25: Сумма
A27: 1 | G27: 2 | K27: 3 | L27: 4 | N27: 5 | O27: 6 | AC27: 7 | AD27: 8 | AE27: 9 | AF27: 10 | AG27: 11 | AH27: 12 | AI27: 13
A28: Количество порций
A29: Выход - вес порции | L29: 0.2
A31: рис | G31: 85.00 | K31: кг | M31: 0.040 | AG31: =SUM(M31:AF31) -> 0.040 | AH31: =SUM(AG31*O19) -> 1.200 | AI31: =AH31*G31 -> 102.00
A32: Молоко | G32: 68.00 | K32: кг | M32: 0.050 | AG32: 0.050 | AH32: =AG32*O$19 -> 1.500 | AI32: 102.00
A33: масло сливочное | G33: 610.00 | K33: кг | L33: 0.030 | M33: 0.005 | O33: 0.005 | AG33: 0.010 | AH33: 0.300 | AI33: 183.00
A34: сахар | G34: 68.00 | K34: кг | M34: 0.005 | N34: 0.010 | AG34: 0.015 | AH34: 0.450 | AI34: 30.60
A35: сухофрукты | G35: 160.00 | K35: кг | N35: 0.010 | AG35: 0.010 | AH35: 0.300 | AI35: 48.00
A36: хлеб пшеничный | G36: 49.00 | K36: кг | L36: 0.004 | O36: 0.080 | AG36: 0.080 | AH36: 2.400 | AI36: 117.60
A37: масло растительное | G37: 130.00 | K37: кг | AG37: 0.000 | AH37: 0.00 | AI37: 0.000
A38: сыр | G38: 550.00 | K38: кг | O38: 0.010 | AG38: 0.010 | AH38: 0.300 | AI38: 165.00
A39: сок | G39: 75.00 | K39: кг | AC39: 0.200 | AG39: 0.200 | AH39: 6.000 | AI39: 450.00
A40: соль | G40: 12.00 | K40: кг | M40: 0.005 | AE40: 0.001 | AG40: =SUM(M40:AF40) -> 0.006 | AH40: =AG40*O$19 -> 0.180 | AI40: =AH40*G40 -> 2.16
A41: яйцо | G41: 7.50 | AD41: 1.000 | AG41: =SUM(M41:AF41) -> 1.000 | AH41: =AG41*O$19 -> 30.00 | AI41: =AH41*G41 -> 225.00
A42: куры | G42: 160.00 | M42: 0.090 | AG42: =SUM(M42:AF42) -> 0.090 | AH42: =AG42*O$19 -> 2.70 | AI42: =AH42*G42 -> 432.00
A43: аскорбиновая кислота | G43: 5000.00 | K43: кг | AG43: =SUM(M43:AF43) -> 0.00000 | AH43: =AG43*O$19 -> 0.000 | AI43: =AH43*G43 -> 0.00
A44: яйцо | G44: 12.00 | K44: шт | AE44: 0.500 | AG44: =SUM(M44:AF44) -> 0.500 | AH44: =AG44*O$19 -> 15.00 | AI44: =AH44*G44 -> 180.00
A45: томат | G45: 210.00 | M45: 0.005 | AG45: 0.005 | AH45: 0.15 | AI45: 31.50
A46: Итого | AG46: =SUM(AG31:AG45) -> 2.016 | AH46: =SUM(AH31:AH45) -> 60.480 | AI46: =SUM(AI31:AI45) -> 2068.86
A49: Бухгалтер | C49: ____________ | K49: ______________________________ | AC49: Повар | AD49: _____________ | AE49: Кенесариева Э.Д. | AG49: Кладовщик | AI49: Хамзаева Э.Д.
